bitfinex/quotes_ETHUSD_20210701
["timestamp","ask_amount","ask_price","bid_price","bid_amount"]
[1625173726694,7.079,2118.9,2118.0,7.07886]
[1625173726795,12.089,2118.9,2118.0,7.07886]
[1625173727042,7.079,2118.9,2118.0,7.07886]
[1625173727392,7.079,2118.9,2118.0,7.13886]
[1625173728184,7.079,2118.9,2118.0,7.07886]
[1625173728485,12.089,2118.9,2118.0,7.07886]
[1625173729237,12.089,2118.9,2117.9,1.264]
[1625173729438,12.089,2118.9,2117.9,8.34323]
[1625173729643,27.089,2118.9,2117.9,1.264]
[1625173729741,27.089,2118.9,2117.6,12.46537676]
[1625173730641,27.089,2118.9,2117.7,7.07977]
[1625173731443,2.0,2118.7,2117.7,7.07977]
[1625173731691,7.08005,2118.5,2117.7,7.07977]
[1625173731893,12.09005,2118.5,2117.7,7.07977]
[1625173732524,14.09005,2118.5,2117.7,7.07977]
[1625173732622,10.6397,2118.5,2117.6,3.02593676]
[1625173732773,7.08127,2118.1,2117.4,17.04652]
[1625173732875,7.08127,2118.1,2117.2,9.44103]
[1625173732972,12.09127,2118.1,2117.2,9.44103]
[1625173733075,9.29574338,2118.1,2117.2,9.44103]
[1625173733171,9.29574338,2118.1,2117.1,0.1]
[1625173733669,8.4101,2118.1,2117.1,0.1]
[1625173733926,7.08219,2117.8,2117.1,7.18216]
[1625173734072,7.08219,2117.8,2117.1,0.1]
[1625173734073,4.9033,2117.8,2117.1,0.1]
[1625173734271,20.71975586,2117.8,2117.1,0.1]
[1625173734371,28.0,2117.7,2116.9,9.44235]
[1625173734477,43.0,2117.7,2116.7,10.6458]
[1625173734658,48.07,2117.7,2116.7,10.6458]
[1625173734756,23.281,2117.7,2116.7,10.6458]
[1625173735104,23.221,2117.7,2116.7,10.6458]
[1625173735201,7.08385,2117.4,2116.7,10.6458]
[1625173735353,7.08385,2117.4,2116.5,11.02073951]
[1625173735452,7.08385,2117.4,2116.5,0.00683951]
[1625173735652,23.221,2117.7,2116.5,0.00683951]
[1625173735754,2.0,2117.4,2116.5,0.00683951]
[1625173735853,2.0,2117.4,2116.6,0.04]
[1625173736505,2.0,2117.4,2116.5,0.00683951]
[1625173736604,3.4438,2117.4,2116.5,0.00683951]
[1625173736895,8.4538,2117.4,2116.5,0.00683951]
[1625173736994,3.4438,2117.4,2116.5,0.00683951]
[1625173737094,8.4538,2117.4,2116.5,0.00683951]
[1625173737448,8.4538,2117.4,2116.7,7.08324]
[1625173738498,5.01,2117.4,2116.7,7.08324]
[1625173738697,12.09324,2117.5,2116.7,7.08324]
[1625173738796,7.08324,2117.5,2116.7,7.08324]
[1625173738902,12.09324,2117.5,2116.7,7.08324]
[1625173742096,12.09324,2117.5,2116.5,7.09063951]
[1625173742200,15.0,2117.4,2116.5,7.09063951]
[1625173742398,20.01,2117.4,2116.5,7.09063951]
[1625173742845,5.01,2117.4,2116.5,7.09063951]
[1625173742948,1.1747,2117.6,2116.5,7.09063951]
[1625173743349,16.1747,2117.6,2116.5,7.09063951]
[1625173743549,21.1847,2117.6,2116.5,7.09063951]
[1625173744188,6.1847,2117.6,2116.5,7.09063951]
[1625173744341,45.68892586,2117.8,2116.5,7.09063951]
[1625173744492,7.08421,2117.3,2116.5,7.09063951]
[1625173744739,15.37971,2117.3,2116.5,7.09063951]
[1625173744842,10.36971,2117.3,2116.5,7.09063951]
[1625173744941,15.37971,2117.3,2116.5,7.09063951]
[1625173745142,15.37971,2117.3,2116.5,0.00683951]
[1625173745545,15.37971,2117.3,2116.4,7.09075951]
[1625173745649,8.2955,2117.3,2116.4,0.00683951]
[1625173746041,8.2955,2117.3,2116.5,0.00683951]
[1625173746492,8.2955,2117.3,2116.1,0.20683951]
[1625173747142,8.2955,2117.3,2116.2,0.06]
[1625173747294,8.2955,2117.3,2116.1,0.20683951]
[1625173747545,15.37971,2117.3,2116.2,7.08427]
[1625173747894,15.37971,2117.3,2116.3,0.00683951]
[1625173747998,15.37971,2117.3,2115.8,6.61313535]
[1625173747999,30.15,2117.1,2115.8,6.61313535]
[1625173748183,0.17371722,2116.9,2115.5,10.5511]
[1625173748259,3.67371722,2116.9,2115.5,10.5511]
[1625173748359,15.0,2116.8,2115.5,10.5511]
[1625173748464,0.11626856,2116.7,2115.5,10.5511]
[1625173748669,7.08827,2116.2,2115.3,20.4117]
[1625173748764,10.13812934,2116.2,2115.3,20.4117]
[1625173748863,12.35000108,2116.2,2115.3,20.4117]
[1625173748965,27.35000108,2116.2,2115.3,20.1117]
[1625173749113,27.34462605,2116.2,2115.3,20.1117]
[1625173749320,3.54456,2115.9,2115.1,0.2]
[1625173749417,15.0,2115.8,2115.1,0.2]
[1625173749516,20.01,2115.8,2115.1,0.2]
[1625173749671,30.15,2115.7,2114.0,1.58747085]
[1625173749769,15.0,2115.6,2113.8,11.88636262]
[1625173749866,0.23003642,2115.5,2113.8,11.88636262]
[1625173751110,3.77550642,2115.5,2113.8,11.88636262]
[1625173751211,9.45493,2115.0,2113.8,11.88636262]
[1625173751361,0.05048917,2114.9,2113.8,11.88636262]
[1625173751459,0.05048917,2114.9,2113.8,11.73636262]
[1625173751561,0.04036952,2115.0,2113.8,11.73636262]
[1625173751661,1.2556,2115.0,2113.9,30.15]
[1625173751766,9.45493,2115.2,2113.9,30.15]
[1625173751876,0.01390788,2115.5,2113.9,30.15]
[1625173751973,0.15,2115.9,2113.9,33.62370311]
[1625173752070,0.06,2116.1,2114.0,0.09866105]
[1625173752168,0.15,2116.5,2114.0,0.44866105]
[1625173752268,11.81824,2116.1,2114.8,7.08748]
[1625173752372,11.81654,2116.4,2114.8,11.61028]
[1625173752467,11.81654,2116.4,2114.8,17.5671604]
[1625173752654,11.81654,2116.4,2114.9,2.35866745]
[1625173752996,10.3227,2116.6,2114.9,2.35866745]
[1625173753350,7.08643,2116.5,2115.3,7.08616]
[1625173753445,10.3227,2116.6,2115.3,3.52940932]
[1625173753543,10.3227,2116.6,2115.3,8.5326]
[1625173753645,10.845,2116.8,2115.3,8.53983964]
[1625173753747,12.01364,2116.9,2115.4,2.19700078]
[1625173753847,12.01364,2116.9,2115.4,2.20851731]
[1625173753996,12.94859646,2116.9,2115.4,8.52509235]
[1625173754095,12.01364,2116.9,2115.4,16.52509235]
[1625173754193,12.01364,2116.9,2115.4,21.53509235]
[1625173754444,7.08547,2116.7,2115.5,7.08547]
[1625173754542,7.08547,2116.7,2115.5,12.09547]
[1625173755113,7.08547,2116.7,2115.5,20.09547]
[1625173755518,7.08547,2116.7,2115.6,53.63967149]
[1625173755617,7.08547,2116.7,2115.6,53.65459538]
[1625173755715,7.08547,2116.7,2115.6,58.66459538]
[1625173757151,7.08547,2116.7,2115.6,58.64967149]
[1625173757349,7.08547,2116.7,2115.6,58.47028149]
[1625173757451,7.08547,2116.7,2115.6,4.72366]
[1625173757552,7.08547,2116.7,2115.5,10.87747078]
[1625173758002,7.08547,2116.7,2115.5,10.74015078]
[1625173758101,7.08547,2116.7,2115.5,10.48354078]
[1625173758455,7.08547,2116.7,2115.5,3.39807078]
[1625173758804,7.08547,2116.7,2115.5,1.20107]
[1625173759207,7.08547,2116.7,2115.5,1.07069]
[1625173759607,7.08547,2116.7,2115.5,1.00361]
[1625173759809,12.09547,2116.7,2115.5,1.00361]
[1625173759961,7.08547,2116.7,2115.5,0.99617]
[1625173760260,12.09547,2116.7,2115.5,0.99617]
[1625173760760,0.08,2116.6,2115.5,0.99617]
[1625173760860,12.09547,2116.7,2115.5,0.99617]
[1625173762844,12.09547,2116.7,2115.4,6.31657504]
[1625173762993,0.04,2116.6,2115.4,6.31657504]
[1625173763343,7.08671,2116.0,2115.4,6.26664504]
[1625173763443,7.08671,2116.0,2115.4,6.12058504]
[1625173763543,7.08671,2116.0,2115.3,3.5226]
[1625173763643,7.08671,2116.0,2115.2,1.3627]
[1625173763894,4.28836766,2116.0,2115.0,7.08649]
[1625173764194,4.28836766,2116.0,2115.0,12.09649]
[1625173764595,4.28836766,2116.0,2115.5,52.35779109]
[1625173764746,4.28836766,2116.0,2115.5,56.56209109]
[1625173764844,4.28836766,2116.0,2115.5,4.2043]
[1625173765549,4.28836766,2116.0,2115.5,4.17232]
[1625173768606,4.28836766,2116.0,2115.4,2.742]
[1625173768708,4.28836766,2116.0,2115.1,9.82381862]
[1625173768808,4.28836766,2116.0,2115.1,7.74721862]
[1625173771995,4.28836766,2116.0,2115.1,14.83416862]
[1625173772094,4.28836766,2116.0,2115.1,14.84491103]
[1625173772245,4.28836766,2116.0,2115.1,16.55121103]
[1625173772346,4.28836766,2116.0,2115.1,24.55121103]
[1625173772922,4.28836766,2116.0,2115.2,0.1]
[1625173773159,4.28836766,2116.0,2115.1,25.73296862]
[1625173774560,4.28836766,2116.0,2115.1,17.73296862]
[1625173774863,4.28836766,2116.0,2115.1,16.54046862]
[1625173775200,4.28836766,2116.0,2115.1,16.49046862]
[1625173775802,4.28836766,2116.0,2115.1,24.49046862]
[1625173775903,9.44895,2116.3,2115.1,17.40969766]
[1625173776054,9.44895,2116.3,2115.1,19.61092214]
[1625173776150,9.44895,2116.3,2115.2,0.1]
[1625173776553,9.44895,2116.3,2115.3,2.72050373]
[1625173776652,9.44895,2116.3,2115.3,7.66380373]
[1625173776752,9.44895,2116.3,2115.3,12.67380373]
[1625173776851,9.44895,2116.3,2115.3,20.6814346]
[1625173776953,9.44895,2116.3,2115.4,0.10436685]
[1625173777052,9.44895,2116.3,2115.3,20.78062711]
[1625173777152,9.44895,2116.3,2115.3,20.6814346]
[1625173777254,9.44895,2116.3,2115.3,20.77878293]
[1625173777423,7.08636,2116.2,2115.3,27.86503293]
[1625173777655,7.08636,2116.2,2115.3,27.7676846]
[1625173778058,7.08636,2116.2,2115.3,27.76005373]
[1625173778158,7.08636,2116.2,2115.3,19.76005373]
[1625173778858,7.08636,2116.2,2115.3,14.75005373]
[1625173780183,7.08636,2116.2,2115.3,19.76005373]
[1625173780827,7.08636,2116.2,2115.3,12.67380373]
[1625173781919,7.08636,2116.2,2115.3,19.76023373]
[1625173782407,7.08636,2116.2,2115.3,21.05873797]
[1625173782658,7.08636,2116.2,2115.3,21.00873797]
[1625173782759,11.0153,2116.5,2115.3,13.92230797]
[1625173783059,11.0153,2116.5,2115.3,21.92230797]
[1625173783262,11.0153,2116.5,2115.3,13.92942499]
[1625173783359,11.0153,2116.5,2115.5,45.48560773]
[1625173783460,11.0153,2116.5,2115.6,0.09778237]
[1625173783560,11.0153,2116.5,2115.3,13.92942499]
[1625173784421,7.08643,2116.0,2115.4,7.08643]
[1625173784520,7.08643,2116.0,2115.4,12.09643]
[1625173785225,7.08643,2116.0,2115.4,5.01]
[1625173785422,7.08643,2116.0,2115.3,7.73762075]
[1625173785677,7.08643,2116.0,2115.3,2.72762075]
[1625173785678,12.01963,2116.0,2115.3,2.72762075]
[1625173785780,12.01963,2116.0,2114.7,0.15]
[1625173785781,17.02963,2116.0,2114.7,0.15]
[1625173785932,9.9529916,2116.0,2114.6,21.3702]
[1625173786076,0.16,2115.9,2114.6,21.3702]
[1625173786278,3.5449,2115.6,2114.6,21.3702]
[1625173786524,8.5549,2115.6,2114.6,10.4841]
[1625173786622,8.5613578,2115.6,2114.3,10.0757]
[1625173786773,11.4080578,2115.6,2113.8,0.96016262]
[1625173786876,1.1919,2115.0,2114.2,9.4526]
[1625173786978,3.7845,2115.0,2113.8,0.81016262]
[1625173787376,3.7845,2115.0,2113.8,3.0113871]
[1625173787477,2.10020607,2115.0,2113.8,3.0113871]
[1625173788274,2.10020607,2115.0,2113.8,2.20122448]
[1625173788378,7.0915,2114.5,2113.8,2.20122448]
[1625173788722,9.45498,2114.8,2113.8,4.74554949]
[1625173788924,9.45498,2114.8,2113.9,0.06]
[1625173789021,14.40262,2115.2,2113.9,0.06]
[1625173789122,10.857,2115.2,2113.9,0.06]
[1625173789271,10.857,2115.2,2113.8,4.74554949]
[1625173789372,10.857,2115.2,2114.0,4.74554949]
[1625173789474,10.857,2115.2,2114.0,4.69554949]
[1625173790223,15.867,2115.2,2114.0,4.69554949]
[1625173790324,15.867,2115.2,2114.0,9.70554949]
[1625173790478,7.09098,2114.8,2114.0,4.69554949]
[1625173790573,7.09098,2114.8,2113.8,9.45394]
[1625173790574,12.10098,2114.8,2113.8,9.45394]
[1625173790825,7.09098,2114.8,2113.8,9.45394]
[1625173790968,7.09098,2114.8,2113.8,11.65516448]
[1625173791115,12.10098,2114.8,2113.8,11.65516448]
[1625173791215,7.09098,2114.8,2113.8,11.65516448]
[1625173791819,7.09098,2114.8,2113.9,3.5457]
[1625173791917,12.10098,2114.8,2113.9,3.5457]
[1625173792069,0.1,2114.7,2113.9,3.5457]
[1625173792269,9.45394,2115.1,2113.9,3.5457]
[1625173792270,14.46394,2115.1,2113.9,3.5457]
[1625173792823,14.46394,2115.1,2113.9,8.5557]
[1625173793213,7.09171,2114.6,2113.9,8.5557]
[1625173793368,7.09171,2114.6,2113.9,3.5457]
[1625173794065,7.09171,2114.6,2113.8,2.20122448]
[1625173794218,7.09171,2114.6,2113.8,2.10122448]
[1625173794315,7.09171,2114.6,2113.5,29.33531]
[1625173794816,7.09171,2114.6,2113.6,0.06]
[1625173795118,7.09171,2114.6,2113.5,31.38709516]
[1625173796224,7.09171,2114.6,2113.5,23.38709516]
[1625173796324,7.10436539,2114.6,2113.5,23.38709516]
[1625173796420,7.10436539,2114.6,2113.5,13.93178516]
[1625173796622,7.09268,2114.3,2113.5,13.93178516]
[1625173796722,7.09268,2114.3,2113.5,11.88]
[1625173797276,7.09268,2114.3,2113.5,2.162]
[1625173797434,12.10932213,2114.3,2113.5,2.162]
[1625173797530,0.2,2114.2,2113.5,2.162]
[1625173798131,0.2,2114.2,2113.1,0.2]
[1625173798236,7.09541,2113.7,2113.1,0.2]
[1625173798542,7.09541,2113.7,2113.1,2.5787425]
[1625173798935,7.09541,2113.7,2113.1,0.2]
[1625173799083,11.76021,2113.7,2113.1,0.2]
[1625173799686,0.2,2113.6,2113.1,0.2]
[1625173800281,11.76021,2113.7,2113.1,0.2]
[1625173804580,4.6648,2113.7,2113.1,0.2]
[1625173804680,0.5374569,2113.8,2113.1,0.2]
[1625173805182,0.5374569,2113.9,2113.1,0.2]
[1625173805831,7.09489,2113.8,2113.1,0.2]
[1625173805937,7.25489,2113.8,2113.1,0.2]
[1625173806538,7.09489,2113.8,2113.1,0.2]
[1625173808573,12.10489,2113.8,2113.1,0.2]
[1625173808828,0.1,2113.7,2113.1,0.2]
[1625173808951,0.0001,2113.7,2113.1,0.2]
[1625173809087,0.5374569,2114.0,2113.1,4.9749]
[1625173809184,0.5374569,2114.0,2113.1,7.3536425]
[1625173809288,0.5374569,2114.0,2113.1,20.3636425]
[1625173809436,0.5374569,2114.0,2113.2,0.16175727]
[1625173809533,0.5374569,2114.0,2113.2,0.16775507]
[1625173809635,5.69e-05,2114.0,2113.2,0.16775507]
[1625173809736,10.0893,2114.8,2113.3,30.2]
[1625173809838,10.0893,2114.8,2113.4,0.2843034]
[1625173809936,7.09177,2114.7,2113.4,7.3755734]
[1625173810038,11.82313,2115.0,2113.4,12.3855734]
[1625173810142,10.6491,2115.2,2113.5,0.36280199]
[1625173810240,10.6491,2115.2,2113.6,0.33550524]
[1625173810386,11.82204,2115.3,2113.7,0.35]
[1625173810489,11.82204,2115.3,2113.8,0.36674423]
[1625173810689,10.5727,2115.4,2113.9,0.23]
[1625173810792,10.5727,2115.4,2114.0,0.37178915]
[1625173811041,17.66202,2115.4,2114.1,12.01465222]
[1625173811185,17.66202,2115.4,2114.2,0.26447292]
[1625173811687,11.81775,2116.1,2114.3,30.2]
[1625173811883,11.81775,2116.1,2114.4,0.57008079]
[1625173812086,7.08827,2115.7,2114.5,7.0875]
[1625173812181,7.08827,2115.7,2114.6,0.22082456]
[1625173812332,7.08827,2115.7,2114.6,5.00882456]
[1625173812433,7.08827,2115.7,2114.7,0.1]
[1625173812536,11.81775,2116.1,2114.8,0.16644611]
[1625173812734,11.81775,2116.1,2114.7,0.29437209]
[1625173812834,11.81775,2116.1,2114.7,0.30087888]
[1625173812934,11.81775,2116.1,2114.7,0.34087888]
[1625173813036,16.82775,2116.1,2114.7,0.34087888]
[1625173813137,16.82775,2116.1,2114.7,0.30087888]
[1625173813237,7.0876,2116.0,2114.7,0.30087888]
[1625173814327,7.0876,2116.0,2114.7,5.584113]
[1625173814478,7.0876,2116.0,2114.9,38.45367292]
[1625173814578,7.0876,2116.0,2115.0,0.17408331]
[1625173816454,7.0876,2116.0,2114.9,2.98589286]
[1625173816551,7.0876,2116.0,2114.9,2.9789]
[1625173816649,12.0976,2116.0,2114.9,2.9789]
[1625173817300,7.0876,2116.0,2114.9,2.9789]
[1625173817802,7.0876,2116.0,2115.0,0.18]
[1625173818462,7.0876,2116.0,2115.0,2.713035]
[1625173818564,21.1346,2116.3,2115.0,2.713035]
[1625173818666,21.1346,2116.3,2115.0,13.00513327]
[1625173818767,21.1346,2116.3,2115.0,21.00513327]
[1625173818870,28.22118,2116.3,2115.1,7.08658]
[1625173818968,33.23118,2116.3,2115.0,13.00513327]
[1625173819066,33.23118,2116.3,2115.0,10.29209827]
[1625173819170,33.23118,2116.3,2115.0,5.01]
[1625173819366,33.23118,2116.3,2114.7,14.45877]
[1625173819466,33.23118,2116.3,2114.7,9.44877]
[1625173819717,26.1446,2116.3,2114.5,22.26246126]
[1625173820196,26.0446,2116.3,2114.5,22.26246126]
[1625173820298,33.13118,2116.3,2114.5,22.26246126]
[1625173820594,33.14670381,2116.3,2114.5,22.26246126]
[1625173821246,33.14670381,2116.3,2114.5,21.3203]
[1625173821748,33.14670381,2116.3,2114.5,28.40895]
[1625173822352,33.14670381,2116.3,2114.5,33.41895]
[1625173822835,33.14670381,2116.3,2114.5,38.70238003]
[1625173822935,33.14670381,2116.3,2114.5,36.11738003]
[1625173823041,38.36750381,2116.3,2114.5,7.23865]
[1625173823193,38.36750381,2116.3,2114.0,9.45074]
[1625173823194,25.26677309,2116.2,2114.0,9.45074]
[1625173823342,33.34906033,2116.2,2113.9,10.2639]
[1625173823437,43.35906033,2116.2,2113.9,10.2639]
[1625173823542,0.1,2116.1,2113.9,10.2639]
[1625173823691,10.0199866,2115.6,2113.9,10.2639]
[1625173823789,18.54564,2115.5,2113.9,10.2639]
[1625173823937,0.13994876,2115.4,2113.9,10.2639]
[1625173824142,7.09186,2114.8,2113.9,10.2639]
[1625173824242,7.0981237,2114.8,2113.9,10.2639]
[1625173824710,7.0981237,2114.8,2113.7,9.9666]
[1625173824807,0.0062637,2114.8,2113.2,41.9182]
[1625173824911,5.0162637,2114.8,2113.2,41.9182]
[1625173825010,0.06084706,2114.7,2113.2,41.9182]
[1625173825262,7.09333,2114.3,2113.2,49.01129]
[1625173825362,7.09333,2114.3,2113.2,28.02649]
[1625173826360,7.09272,2114.5,2113.2,28.02649]
[1625173826812,7.09272,2114.5,2113.2,41.03649]
[1625173826966,7.09272,2114.5,2113.2,25.9434]
[1625173827455,7.09272,2114.5,2113.2,33.9434]
[1625173827607,7.09272,2114.5,2113.2,35.4256]
[1625173827807,7.09272,2114.5,2113.4,7.09239]
[1625173828009,7.09272,2114.5,2113.4,12.10239]
[1625173828309,7.09272,2114.5,2113.4,20.10239]
[1625173828461,7.09272,2114.5,2113.5,0.06]
[1625173828810,7.09272,2114.5,2113.4,20.10239]
[1625173829306,7.09272,2114.5,2113.5,54.67724368]
[1625173829403,7.09272,2114.5,2113.5,0.0085371]
[1625173830406,7.09272,2114.5,2113.4,12.0109271]
[1625173832149,7.09272,2114.5,2113.2,17.70409]
[1625173832256,7.09272,2114.5,2113.1,2.41726071]
[1625173832409,3.1688766,2112.7,2112.4,4.2679541]
[1625173832563,7.9662766,2112.7,2112.4,4.2679541]
[1625173833059,12.9762766,2112.7,2112.4,4.2679541]
[1625173833152,0.04,2112.6,2112.4,4.2679541]
[1625173833255,14.54903,2112.5,2112.4,4.2679541]
[1625173833355,4.29621332,2112.5,2112.4,4.2679541]
[1625173833553,9.36621332,2112.5,2112.4,4.2679541]
[1625173833989,4.35621332,2112.5,2112.4,4.2679541]
[1625173834140,4.29621332,2112.5,2112.4,4.2679541]
[1625173834344,9.30621332,2112.5,2112.4,4.2679541]
[1625173835743,37.20621332,2112.5,2112.4,3.8679541]
[1625173835841,9.30621332,2112.5,2112.4,3.8679541]
[1625173836006,9.38621332,2112.5,2112.4,3.8679541]
[1625173836506,9.33621332,2112.5,2112.4,3.8679541]
[1625173836958,14.98621332,2112.5,2112.4,3.8679541]
[1625173837559,33.23621332,2112.5,2112.4,3.4679541]
[1625173837661,9.33621332,2112.5,2112.4,3.4679541]
[1625173837864,26.4,2112.4,2112.1,0.2]
[1625173837962,7.10077,2112.3,2112.1,0.2]
[1625173838066,12.11077,2112.3,2112.1,0.2]
[1625173838362,30.2,2112.1,2111.2,0.01012509]
[1625173838560,0.1,2112.0,2111.2,0.01012509]
[1625173838664,35.22194483,2112.1,2111.2,0.01012509]
[1625173839310,35.22194483,2112.1,2111.1,0.16012509]
[1625173839311,17.35,2112.0,2111.1,0.16012509]
[1625173839558,5.01,2112.1,2111.1,0.16012509]
[1625173839659,9.48110805,2112.4,2111.1,0.16012509]
[1625173839660,14.4777,2112.4,2111.1,0.16012509]
[1625173841769,22.49177805,2112.4,2111.1,0.16012509]
[1625173841919,0.1,2112.3,2111.1,0.16012509]
[1625173842368,14.4777,2112.4,2111.1,0.16012509]
[1625173842761,9.4677,2112.4,2111.1,0.16012509]
[1625173842847,7.10065,2112.3,2111.1,0.16012509]
[1625173843747,7.10065,2112.3,2111.1,49.8402567]
[1625173843997,12.11065,2112.3,2111.1,54.8502567]
[1625173844094,12.11065,2112.3,2111.1,49.8402567]
[1625173844197,12.11065,2112.3,2111.2,0.00991083]
[1625173844300,25.55,2112.2,2111.1,0.12003592]
[1625173844398,25.56127584,2112.2,2111.1,0.12003592]
[1625173844497,30.57127584,2112.2,2111.1,0.12003592]
[1625173844599,5.01,2112.2,2111.1,0.12003592]
[1625173844699,9.48034947,2112.4,2111.1,0.12003592]
[1625173844700,9.4677,2112.4,2111.1,0.12003592]
[1625173844801,14.4777,2112.4,2111.1,0.12003592]
[1625173845146,7.10092,2112.0,2111.1,0.12003592]
[1625173845951,14.4777,2112.4,2111.1,0.12003592]
[1625173846417,7.10052,2112.1,2111.1,0.12003592]
[1625173846515,12.11052,2112.1,2111.1,0.12003592]
[1625173846666,7.10052,2112.1,2111.1,0.12003592]
[1625173848043,12.11052,2112.1,2111.1,0.12003592]
[1625173848545,9.31845494,2112.1,2111.1,0.12003592]
[1625173850712,9.32611222,2112.1,2111.1,0.12003592]
[1625173850815,5.01765728,2112.1,2111.1,0.12003592]
[1625173850963,5.07765728,2112.1,2111.1,0.12003592]
[1625173851162,5.01765728,2112.1,2111.1,0.12003592]
[1625173851264,0.00765728,2112.1,2111.1,0.12003592]
[1625173851366,5.01765728,2112.1,2111.1,0.12003592]
[1625173851465,0.00765728,2112.1,2111.1,0.12003592]
[1625173851567,5.01765728,2112.1,2111.1,0.12003592]
[1625173851812,0.00765728,2112.1,2111.1,0.12003592]
[1625173851917,5.01765728,2112.1,2111.1,0.12003592]
[1625173852265,0.00765728,2112.1,2111.1,0.12003592]
[1625173852417,7.10188,2111.7,2111.1,0.12003592]
[1625173852520,5.01,2111.7,2111.1,0.12003592]
[1625173852718,4.4073,2111.8,2111.1,0.12003592]
[1625173852920,9.4173,2111.8,2111.1,0.12003592]
[1625173853321,4.4073,2111.8,2111.1,0.12003592]
[1625173853524,4.4673,2111.8,2111.1,0.12003592]
[1625173854006,4.4073,2111.8,2111.1,0.12003592]
[1625173854207,7.10178,2111.6,2111.1,0.12003592]
[1625173856367,7.1382,2111.8,2111.1,0.12003592]
[1625173856467,11.0388,2111.8,2111.1,0.12003592]
[1625173856566,4.4073,2111.8,2111.1,0.12003592]
[1625173856768,11.50859,2111.8,2111.1,0.12003592]
[1625173858065,16.51859,2111.8,2111.1,0.12003592]
[1625173858323,11.50859,2111.8,2111.1,0.12003592]
[1625173858565,0.00765728,2112.1,2111.1,4.01343592]
[1625173858721,9.4677,2112.4,2111.2,0.12]
[1625173858913,9.4677,2112.4,2111.1,4.01343592]
[1625173859164,9.4677,2112.4,2111.2,0.10773813]
[1625173859261,9.4677,2112.4,2111.1,9.14094209]
[1625173859612,9.4677,2112.4,2111.1,17.14094209]
[1625173859717,7.09924,2112.5,2111.3,7.09924]
[1625173859812,7.09924,2112.5,2111.4,0.10035741]
[1625173859919,7.09924,2112.5,2111.3,7.09924]
[1625173860164,7.09924,2112.5,2111.3,12.10924]
[1625173860463,7.09924,2112.5,2111.3,7.09924]
[1625173860616,7.09924,2112.5,2111.2,0.11321584]
[1625173860617,30.9663,2112.7,2111.2,0.11321584]
[1625173860771,38.06467,2112.7,2111.6,7.09845]
[1625173860870,17.60527,2112.7,2111.6,11.03855]
[1625173861120,17.60527,2112.7,2111.6,3.9401]
[1625173861580,0.1,2112.6,2111.6,3.9401]
[1625173862380,7.09989,2112.2,2111.6,3.9401]
[1625173865370,7.09989,2112.2,2111.2,10.9669]
[1625173865470,12.10989,2112.2,2111.1,0.12003592]
[1625173865568,0.14,2112.1,2111.1,0.12003592]
[1625173865871,14.47651,2112.4,2111.1,0.12003592]
[1625173866421,9.46863,2111.8,2111.1,0.12003592]
[1625173866569,7.10097,2111.9,2111.1,0.12003592]
[1625173866570,9.46651,2112.4,2111.1,0.07003592]
[1625173866769,14.47651,2112.4,2111.1,0.07003592]
[1625173866970,0.04,2112.3,2111.1,0.07003592]
[1625173867220,3.5504,2112.2,2111.1,0.07003592]
[1625173867422,9.46764,2112.0,2111.1,2.65005499]
[1625173867880,14.47764,2112.0,2111.1,2.65005499]
[1625173868035,9.46764,2112.0,2111.1,2.65005499]
[1625173868232,9.46764,2112.0,2111.1,7.66005499]
[1625173868334,9.46764,2112.0,2111.1,2.65005499]
[1625173868887,14.47764,2112.0,2111.1,0.07003592]
[1625173868985,0.14,2111.9,2111.1,0.07003592]
[1625173869387,14.47764,2112.0,2111.2,30.2]
[1625173869488,9.46764,2112.0,2111.2,35.1542]
[1625173869591,3.5504,2112.2,2111.2,35.1542]
[1625173869934,7.10053,2111.9,2111.2,12.05447]
[1625173870681,18.02743,2112.2,2111.2,12.05447]
[1625173870782,13.01743,2112.2,2111.2,12.05447]
[1625173870936,13.01743,2112.2,2111.3,0.04]
[1625173871133,7.10076,2111.9,2111.3,0.04]
[1625173871283,7.10076,2111.9,2111.2,12.00447]
[1625173872640,7.10076,2111.9,2111.2,4.9042]
[1625173872991,3.5504,2112.2,2111.2,4.9042]
[1625173873087,3.5504,2112.2,2111.3,0.08]
[1625173873288,3.5504,2112.2,2111.2,6.0841]
[1625173873739,9.46655,2112.3,2111.2,6.0841]
[1625173874352,9.46655,2112.3,2111.2,6.0341]
[1625173875109,9.46655,2112.3,2111.1,9.53658592]
[1625173875212,14.47655,2112.3,2111.1,9.53658592]
[1625173875309,9.2807,2112.3,2111.1,0.07003592]
[1625173875411,11.2807,2112.3,2111.1,0.07003592]
[1625173875507,0.15,2112.2,2111.1,0.07003592]
[1625173875808,3.5512883,2112.1,2111.1,0.07003592]
[1625173876010,6.92809,2111.8,2111.1,0.07003592]
[1625173876110,3.3769,2111.8,2111.1,0.07003592]
[1625173876673,7.10307,2111.5,2111.1,0.07003592]
[1625173878563,12.11307,2111.5,2111.1,0.07003592]
[1625173879594,7.10307,2111.5,2111.1,0.07003592]
[1625173881396,12.11307,2111.5,2111.1,0.07003592]
[1625173882298,7.10307,2111.5,2111.1,0.07003592]
[1625173884247,13.020122,2111.9,2111.1,7.65159999]
[1625173884248,9.4687,2111.9,2111.1,7.65159999]
[1625173884342,2.0,2112.3,2111.1,7.65159999]
[1625173884492,7.10033,2112.0,2111.2,7.40167589]
[1625173884589,7.10033,2112.0,2111.2,0.20607568]
[1625173884694,7.10033,2112.0,2111.2,5.21607568]
[1625173884797,30.2,2111.9,2111.1,7.11626407]
[1625173884963,31.02469,2111.9,2110.6,9.46878]
[1625173885116,3.6,2111.6,2110.6,9.46878]
[1625173885205,0.08277716,2111.8,2110.3,2.50109741]
[1625173885357,25.1,2110.7,2109.4,0.93815155]
[1625173885461,3.6,2110.5,2109.4,0.93815155]
[1625173885550,3.6,2110.5,2109.0,6.87]
[1625173885551,15.0,2110.4,2109.7,3.73e-06]